[Event "Titled Tuesday Blitz May 25 2021"]
[White "Sadhwani, Raunak"]
[Black "Xiong, Jeffery"]
[WhiteFideId "35093487"]
[BlackFideId "2047640"]
[WhiteElo "2514"]
[BlackElo "2724"]
[Result "0-1"]
[Round "09"]
[TimeControl "180+1"]
[Date "2021.05.25"]
[WhiteClock "0:00:14"]
[BlackClock "0:01:04"]

1. d4 {[%clk 0:03:00]}  Nf6 {[%clk 0:02:58]} 2. Nf3 {[%clk 0:03:00]}  c5 {[%clk 0:02:58]} 3. c3 {[%clk 0:02:58]}  Qa5 {[%clk 0:02:58]} 4. dxc5 {[%clk 0:02:52]}  Qxc5 {[%clk 0:02:58]} 5. g3 {[%clk 0:02:52]}  b6 {[%clk 0:02:56]} 6. Bg2 {[%clk 0:02:52]}  Bb7 {[%clk 0:02:56]} 7. O-O {[%clk 0:02:52]}  g6 {[%clk 0:02:56]} 8. a4 {[%clk 0:02:53]}  Bg7 {[%clk 0:02:56]} 9. a5 {[%clk 0:02:53]}  O-O {[%clk 0:02:55]} 10. Nbd2 {[%clk 0:02:52]}  Qc8 {[%clk 0:02:54]} 11. Nb3 {[%clk 0:02:48]}  d6 {[%clk 0:02:44]} 12. axb6 {[%clk 0:02:45]}  axb6 {[%clk 0:02:45]} 13. Rxa8 {[%clk 0:02:45]}  Bxa8 {[%clk 0:02:46]} 14. Be3 {[%clk 0:02:45]}  Nbd7 {[%clk 0:02:45]} 15. Nbd4 {[%clk 0:02:31]}  Nd5 {[%clk 0:02:37]} 16. Bd2 {[%clk 0:02:30]}  Nc5 {[%clk 0:02:36]} 17. Qc1 {[%clk 0:02:24]}  e5 {[%clk 0:02:30]} 18. Nb5 {[%clk 0:02:21]}  Qd7 {[%clk 0:02:20]} 19. c4 {[%clk 0:02:15]}  Nc7 {[%clk 0:02:20]} 20. Nxc7 {[%clk 0:02:11]}  Qxc7 {[%clk 0:02:19]} 21. Be3 {[%clk 0:02:03]}  Rc8 {[%clk 0:02:16]} 22. Rd1 {[%clk 0:02:03]}  Ne6 {[%clk 0:02:09]} 23. b3 {[%clk 0:01:58]}  d5 {[%clk 0:02:09]} 24. cxd5 {[%clk 0:01:53]}  Qxc1 {[%clk 0:02:09]} 25. Rxc1 {[%clk 0:01:54]}  Rxc1+ {[%clk 0:02:09]} 26. Bxc1 {[%clk 0:01:55]}  Bxd5 {[%clk 0:02:10]} 27. Nd2 {[%clk 0:01:55]}  Bxg2 {[%clk 0:02:02]} 28. Kxg2 {[%clk 0:01:55]}  b5 {[%clk 0:01:49]} 29. e3 {[%clk 0:01:21]}  f5 {[%clk 0:01:48]} 30. f3 {[%clk 0:01:14]}  Kf7 {[%clk 0:01:44]} 31. Kf1 {[%clk 0:01:13]}  Nc5 {[%clk 0:01:39]} 32. Ke2 {[%clk 0:01:06]}  Ke6 {[%clk 0:01:39]} 33. Ba3 {[%clk 0:01:04]}  Kd5 {[%clk 0:01:39]} 34. Bb4 {[%clk 0:00:33]}  Nxb3 {[%clk 0:01:21]} 35. e4+ {[%clk 0:00:20]}  fxe4 {[%clk 0:01:09]} 36. Nxe4 {[%clk 0:00:17]}  Kc4 {[%clk 0:01:05]} 37. Bc3 {[%clk 0:00:13]}  Nd4+ {[%clk 0:01:06]} 38. Kf2 {[%clk 0:00:14]}  b4 {[%clk 0:01:05]} 39. Bb2 {[%clk 0:00:14]}  Kd3 {[%clk 0:01:04]} 0-1


[Site "https://www.chess.com"]

[Event "Titled Tuesday Blitz May 25 2021"]
[White "Samadov, Read"]
[Black "Song, Julien"]
[WhiteFideId "13417444"]
[BlackFideId "659487"]
[WhiteElo "2084"]
[BlackElo "2225"]
[Result "1-0"]
[Round "09"]
[TimeControl "180+1"]
[Date "2021.05.25"]
[WhiteClock "0:00:37"]
[BlackClock "0:00:30"]

1. d4 {[%clk 0:03:00]}  d5 {[%clk 0:02:59]} 2. Nf3 {[%clk 0:03:01]}  Nf6 {[%clk 0:02:59]} 3. c4 {[%clk 0:03:00]}  dxc4 {[%clk 0:03:00]} 4. e3 {[%clk 0:02:59]}  e6 {[%clk 0:03:00]} 5. Bxc4 {[%clk 0:02:59]}  c5 {[%clk 0:03:01]} 6. O-O {[%clk 0:02:59]}  Nc6 {[%clk 0:03:01]} 7. Qe2 {[%clk 0:02:56]}  a6 {[%clk 0:03:01]} 8. a4 {[%clk 0:02:54]}  cxd4 {[%clk 0:02:57]} 9. Rd1 {[%clk 0:02:54]}  Be7 {[%clk 0:02:50]} 10. exd4 {[%clk 0:02:54]}  O-O {[%clk 0:02:50]} 11. Nc3 {[%clk 0:02:54]}  Nb4 {[%clk 0:02:49]} 12. Ne5 {[%clk 0:02:52]}  b6 {[%clk 0:02:45]} 13. Bg5 {[%clk 0:02:45]}  Bb7 {[%clk 0:02:42]} 14. Rac1 {[%clk 0:02:35]}  Nfd5 {[%clk 0:02:37]} 15. Bd2 {[%clk 0:02:28]}  Bf6 {[%clk 0:02:33]} 16. Ne4 {[%clk 0:02:26]}  Be7 {[%clk 0:02:22]} 17. Qe1 {[%clk 0:01:54]}  Rc8 {[%clk 0:02:12]} 18. Qe2 {[%clk 0:01:18]}  Qe8 {[%clk 0:01:48]} 19. Bb3 {[%clk 0:01:13]}  Rxc1 {[%clk 0:01:41]} 20. Rxc1 {[%clk 0:01:13]}  Qa8 {[%clk 0:01:42]} 21. a5 {[%clk 0:01:05]}  bxa5 {[%clk 0:01:37]} 22. Nc5 {[%clk 0:01:04]}  Rc8 {[%clk 0:01:22]} 23. h4 {[%clk 0:00:42]}  Bxc5 {[%clk 0:01:01]} 24. dxc5 {[%clk 0:00:41]}  Nf6 {[%clk 0:01:01]} 25. Nxf7 {[%clk 0:00:37]}  Kxf7 {[%clk 0:00:39]} 26. Qxe6+ {[%clk 0:00:36]}  Kg6 {[%clk 0:00:39]} 27. h5+ {[%clk 0:00:36]}  Kxh5 {[%clk 0:00:34]} 28. Qf5+ {[%clk 0:00:36]}  Kh4 {[%clk 0:00:30]} 29. Qg5# {[%clk 0:00:37]} 1-0


[Site "https://www.chess.com"]

[Event "Titled Tuesday Blitz May 25 2021"]
[White "Sarana, Alexey"]
[Black "Jones, Gawain C B"]
[WhiteFideId "24133795"]
[BlackFideId "409561"]
[WhiteElo "2629"]
[BlackElo "2657"]
[Result "1-0"]
[Round "09"]
[TimeControl "180+1"]
[Date "2021.05.25"]
[WhiteClock "0:00:42"]
[BlackClock "0:00:05"]

1. d4 {[%clk 0:03:00]}  Nf6 {[%clk 0:02:59]} 2. c4 {[%clk 0:03:00]}  g6 {[%clk 0:03:00]} 3. Nc3 {[%clk 0:03:00]}  Bg7 {[%clk 0:03:00]} 4. e4 {[%clk 0:03:00]}  d6 {[%clk 0:03:01]} 5. Be2 {[%clk 0:03:01]}  O-O {[%clk 0:03:01]} 6. Be3 {[%clk 0:03:01]}  e5 {[%clk 0:03:00]} 7. d5 {[%clk 0:03:01]}  Na6 {[%clk 0:03:00]} 8. g4 {[%clk 0:03:01]}  Nc5 {[%clk 0:02:59]} 9. f3 {[%clk 0:03:02]}  h5 {[%clk 0:02:56]} 10. g5 {[%clk 0:03:02]}  Nh7 {[%clk 0:02:54]} 11. h4 {[%clk 0:03:02]}  f6 {[%clk 0:02:53]} 12. Qd2 {[%clk 0:03:02]}  fxg5 {[%clk 0:02:46]} 13. hxg5 {[%clk 0:03:03]}  Bd7 {[%clk 0:02:46]} 14. Nh3 {[%clk 0:03:00]}  Qe7 {[%clk 0:02:39]} 15. O-O-O {[%clk 0:02:59]}  Na4 {[%clk 0:02:38]} 16. Nb5 {[%clk 0:02:47]}  Be8 {[%clk 0:02:04]} 17. Kb1 {[%clk 0:02:39]}  a6 {[%clk 0:02:03]} 18. Nc3 {[%clk 0:02:36]}  b6 {[%clk 0:02:00]} 19. Rhg1 {[%clk 0:02:30]}  Bd7 {[%clk 0:01:55]} 20. Nf2 {[%clk 0:02:30]}  Rf7 {[%clk 0:01:52]} 21. Nd3 {[%clk 0:02:28]}  Nxc3+ {[%clk 0:01:46]} 22. Qxc3 {[%clk 0:02:28]}  a5 {[%clk 0:01:47]} 23. b3 {[%clk 0:02:27]}  Qd8 {[%clk 0:01:31]} 24. Kb2 {[%clk 0:02:26]}  Bf8 {[%clk 0:01:29]} 25. Rg3 {[%clk 0:02:24]}  h4 {[%clk 0:01:28]} 26. Rg2 {[%clk 0:02:22]}  a4 {[%clk 0:01:09]} 27. b4 {[%clk 0:02:20]}  a3+ {[%clk 0:01:09]} 28. Kc1 {[%clk 0:02:20]}  Be7 {[%clk 0:00:53]} 29. Rdg1 {[%clk 0:02:20]}  h3 {[%clk 0:00:52]} 30. Rg3 {[%clk 0:02:20]}  Bxg5 {[%clk 0:00:40]} 31. Bxg5 {[%clk 0:02:11]}  Nxg5 {[%clk 0:00:40]} 32. Qd2 {[%clk 0:01:42]}  Nh7 {[%clk 0:00:24]} 33. Qh6 {[%clk 0:01:41]}  Qf8 {[%clk 0:00:19]} 34. Rxg6+ {[%clk 0:01:31]}  Kh8 {[%clk 0:00:20]} 35. Qh4 {[%clk 0:01:31]}  Rf6 {[%clk 0:00:15]} 36. f4 {[%clk 0:01:17]}  Rxg6 {[%clk 0:00:11]} 37. Rxg6 {[%clk 0:01:16]}  Qf7 {[%clk 0:00:12]} 38. f5 {[%clk 0:01:12]}  Rg8 {[%clk 0:00:10]} 39. Bh5 {[%clk 0:01:01]}  Rxg6 {[%clk 0:00:10]} 40. Bxg6 {[%clk 0:01:01]}  Qg7 {[%clk 0:00:08]} 41. Qxh3 {[%clk 0:00:54]}  Kg8 {[%clk 0:00:06]} 42. Qxh7+ {[%clk 0:00:51]}  Qxh7 {[%clk 0:00:07]} 43. Bxh7+ {[%clk 0:00:51]}  Kxh7 {[%clk 0:00:08]} 44. b5 {[%clk 0:00:51]}  Be8 {[%clk 0:00:06]} 45. Kd2 {[%clk 0:00:51]}  Bh5 {[%clk 0:00:06]} 46. Nb4 {[%clk 0:00:49]}  Bf3 {[%clk 0:00:03]} 47. Kd3 {[%clk 0:00:49]}  Bd1 {[%clk 0:00:01]} 48. Nc2 {[%clk 0:00:45]}  Kg7 {[%clk 0:00:01]} 49. Nxa3 {[%clk 0:00:46]}  Kf6 {[%clk 0:00:01]} 50. Nc2 {[%clk 0:00:46]}  Kg5 {[%clk 0:00:02]} 51. Kd2 {[%clk 0:00:42]}  Bf3 {[%clk 0:00:02]} 52. Ke3 {[%clk 0:00:42]}  Bd1 {[%clk 0:00:02]} 53. Nb4 {[%clk 0:00:42]}  Bh5 {[%clk 0:00:02]} 54. Na6 {[%clk 0:00:42]}  Kf6 {[%clk 0:00:02]} 55. Nxc7 {[%clk 0:00:42]}  Ke7 {[%clk 0:00:03]} 56. Na8 {[%clk 0:00:43]}  Bd1 {[%clk 0:00:03]} 57. Nxb6 {[%clk 0:00:43]}  Bc2 {[%clk 0:00:04]} 58. a4 {[%clk 0:00:41]}  Kd8 {[%clk 0:00:04]} 59. a5 {[%clk 0:00:42]}  Kc7 {[%clk 0:00:05]} 60. f6 {[%clk 0:00:42]}  Kd8 {[%clk 0:00:05]} 61. a6 {[%clk 0:00:42]} 1-0


[Site "https://www.chess.com"]

[Event "Titled Tuesday Blitz May 25 2021"]
[White "Shapiro, David"]
[Black "Golubev, Mikhail"]
[WhiteFideId "24133523"]
[BlackFideId "14100983"]
[WhiteElo "2261"]
[BlackElo "2374"]
[Result "1/2-1/2"]
[Round "09"]
[TimeControl "180+1"]
[Date "2021.05.25"]
[WhiteClock "0:00:06"]
[BlackClock "0:00:06"]

1. d4 {[%clk 0:03:00]}  Nf6 {[%clk 0:02:59]} 2. Bf4 {[%clk 0:03:00]}  c5 {[%clk 0:02:56]} 3. e3 {[%clk 0:02:58]}  Qb6 {[%clk 0:02:51]} 4. Nc3 {[%clk 0:02:55]}  a6 {[%clk 0:02:49]} 5. a3 {[%clk 0:02:42]}  cxd4 {[%clk 0:02:30]} 6. exd4 {[%clk 0:02:42]}  d5 {[%clk 0:02:15]} 7. Nf3 {[%clk 0:02:36]}  Nc6 {[%clk 0:02:14]} 8. Be2 {[%clk 0:02:24]}  Bg4 {[%clk 0:02:12]} 9. Na4 {[%clk 0:02:15]}  Qa5+ {[%clk 0:01:41]} 10. c3 {[%clk 0:02:14]}  e6 {[%clk 0:01:39]} 11. b4 {[%clk 0:02:07]}  Qd8 {[%clk 0:01:38]} 12. Ne5 {[%clk 0:02:06]}  Bxe2 {[%clk 0:01:33]} 13. Qxe2 {[%clk 0:02:07]}  Nxe5 {[%clk 0:01:25]} 14. Bxe5 {[%clk 0:02:08]}  Ne4 {[%clk 0:01:17]} 15. f3 {[%clk 0:01:59]}  Nd6 {[%clk 0:01:07]} 16. Nc5 {[%clk 0:01:49]}  b5 {[%clk 0:01:01]} 17. Bxd6 {[%clk 0:01:41]}  Qxd6 {[%clk 0:00:50]} 18. O-O {[%clk 0:01:42]}  Be7 {[%clk 0:00:50]} 19. f4 {[%clk 0:01:40]}  g6 {[%clk 0:00:49]} 20. g4 {[%clk 0:01:32]}  O-O {[%clk 0:00:49]} 21. f5 {[%clk 0:01:31]}  exf5 {[%clk 0:00:48]} 22. gxf5 {[%clk 0:01:30]}  Bg5 {[%clk 0:00:41]} 23. Qg2 {[%clk 0:01:21]}  Be3+ {[%clk 0:00:37]} 24. Kh1 {[%clk 0:01:21]}  Rae8 {[%clk 0:00:37]} 25. Rae1 {[%clk 0:01:13]}  Bh6 {[%clk 0:00:24]} 26. fxg6 {[%clk 0:00:57]}  hxg6 {[%clk 0:00:23]} 27. Nd3 {[%clk 0:00:41]}  Rxe1 {[%clk 0:00:20]} 28. Rxe1 {[%clk 0:00:41]}  Kg7 {[%clk 0:00:20]} 29. Re5 {[%clk 0:00:36]}  Rh8 {[%clk 0:00:17]} 30. Qxd5 {[%clk 0:00:34]}  Qxd5+ {[%clk 0:00:16]} 31. Rxd5 {[%clk 0:00:35]}  Bd2 {[%clk 0:00:16]} 32. Rc5 {[%clk 0:00:32]}  Rh3 {[%clk 0:00:16]} 33. Ne5 {[%clk 0:00:31]}  Rxc3 {[%clk 0:00:16]} 34. Rxc3 {[%clk 0:00:30]}  Bxc3 {[%clk 0:00:16]} 35. Nc6 {[%clk 0:00:29]}  Bb2 {[%clk 0:00:10]} 36. d5 {[%clk 0:00:29]}  Kf8 {[%clk 0:00:10]} 37. Nb8 {[%clk 0:00:23]}  Ke7 {[%clk 0:00:08]} 38. Nxa6 {[%clk 0:00:20]}  Bxa3 {[%clk 0:00:08]} 39. Nc7 {[%clk 0:00:20]}  Bxb4 {[%clk 0:00:07]} 40. Nxb5 {[%clk 0:00:20]}  Bd6 {[%clk 0:00:06]} 41. Kg2 {[%clk 0:00:19]}  Be5 {[%clk 0:00:06]} 42. h3 {[%clk 0:00:18]}  f5 {[%clk 0:00:06]} 43. Kf2 {[%clk 0:00:17]}  g5 {[%clk 0:00:06]} 44. Kf3 {[%clk 0:00:17]}  g4+ {[%clk 0:00:06]} 45. hxg4 {[%clk 0:00:17]}  fxg4+ {[%clk 0:00:07]} 46. Kxg4 {[%clk 0:00:18]}  Kf7 {[%clk 0:00:07]} 47. Kf5 {[%clk 0:00:18]}  Bb8 {[%clk 0:00:06]} 48. Nd4 {[%clk 0:00:16]}  Ke8 {[%clk 0:00:06]} 49. Nc6 {[%clk 0:00:16]}  Bc7 {[%clk 0:00:05]} 50. Ke6 {[%clk 0:00:16]}  Bf4 {[%clk 0:00:05]} 51. Nd4 {[%clk 0:00:13]}  Bh2 {[%clk 0:00:05]} 52. Nf5 {[%clk 0:00:13]}  Bf4 {[%clk 0:00:05]} 53. Nd6+ {[%clk 0:00:11]}  Kd8 {[%clk 0:00:05]} 54. Nf7+ {[%clk 0:00:11]}  Kc7 {[%clk 0:00:05]} 55. Ke7 {[%clk 0:00:08]}  Bg3 {[%clk 0:00:05]} 56. Ke6 {[%clk 0:00:07]}  Bh2 {[%clk 0:00:05]} 57. Nh6 {[%clk 0:00:06]}  Bg3 {[%clk 0:00:05]} 58. Nf5 {[%clk 0:00:07]}  Bh2 {[%clk 0:00:05]} 59. Nd4 {[%clk 0:00:07]}  Bf4 {[%clk 0:00:05]} 60. Nb5+ {[%clk 0:00:07]}  Kb6 {[%clk 0:00:06]} 61. Nd6 {[%clk 0:00:07]}  Kc7 {[%clk 0:00:06]} 62. Nf7 {[%clk 0:00:07]}  Bh2 {[%clk 0:00:06]} 63. Ke7 {[%clk 0:00:07]}  Bg3 {[%clk 0:00:06]} 64. Ke6 {[%clk 0:00:06]}  Bh2 {[%clk 0:00:06]} 1/2-1/2


[Site "https://www.chess.com"]

[Event "Titled Tuesday Blitz May 25 2021"]
[White "Spata, German"]
[Black "Rozen, Eytan"]
[WhiteFideId "113026"]
[BlackFideId "2816750"]
[WhiteElo "2533"]
[BlackElo "2674"]
[Result "1-0"]
[Round "09"]
[TimeControl "180+1"]
[Date "2021.05.25"]
[WhiteClock "0:01:06"]
[BlackClock "0:00:05"]

1. d4 {[%clk 0:03:00]}  d5 {[%clk 0:02:56]} 2. Bf4 {[%clk 0:02:55]}  Nf6 {[%clk 0:02:55]} 3. e3 {[%clk 0:02:54]}  c5 {[%clk 0:02:54]} 4. c3 {[%clk 0:02:54]}  Nc6 {[%clk 0:02:50]} 5. Nd2 {[%clk 0:02:53]}  cxd4 {[%clk 0:02:48]} 6. exd4 {[%clk 0:02:53]}  Bf5 {[%clk 0:02:48]} 7. Ngf3 {[%clk 0:02:51]}  e6 {[%clk 0:02:48]} 8. Nh4 {[%clk 0:02:42]}  Be4 {[%clk 0:02:45]} 9. Qb3 {[%clk 0:02:38]}  Qd7 {[%clk 0:02:15]} 10. Nxe4 {[%clk 0:02:34]}  Nxe4 {[%clk 0:02:11]} 11. Nf3 {[%clk 0:02:32]}  Bd6 {[%clk 0:02:10]} 12. Bxd6 {[%clk 0:02:29]}  Qxd6 {[%clk 0:02:03]} 13. Bd3 {[%clk 0:02:25]}  O-O {[%clk 0:01:53]} 14. O-O {[%clk 0:02:19]}  f5 {[%clk 0:01:31]} 15. Rad1 {[%clk 0:02:12]}  a6 {[%clk 0:01:22]} 16. Rfe1 {[%clk 0:02:09]}  b5 {[%clk 0:01:20]} 17. Qc2 {[%clk 0:01:54]}  Rac8 {[%clk 0:01:17]} 18. Qe2 {[%clk 0:01:54]}  Rb8 {[%clk 0:00:56]} 19. a3 {[%clk 0:01:48]}  Rfc8 {[%clk 0:00:43]} 20. Nd2 {[%clk 0:01:48]}  Na5 {[%clk 0:00:39]} 21. f3 {[%clk 0:01:45]}  Nxd2 {[%clk 0:00:38]} 22. Rxd2 {[%clk 0:01:43]}  Re8 {[%clk 0:00:35]} 23. Qf2 {[%clk 0:01:36]}  Nc4 {[%clk 0:00:24]} 24. Rde2 {[%clk 0:01:35]}  Rb6 {[%clk 0:00:20]} 25. Bxf5 {[%clk 0:01:31]}  Qd7 {[%clk 0:00:07]} 26. Qh4 {[%clk 0:01:20]}  Qf7 {[%clk 0:00:07]} 27. Qxh7+ {[%clk 0:01:16]}  Kf8 {[%clk 0:00:07]} 28. Bg6 {[%clk 0:01:13]}  Qd7 {[%clk 0:00:04]} 29. Qh8+ {[%clk 0:01:10]}  Ke7 {[%clk 0:00:04]} 30. Qxe8+ {[%clk 0:01:10]}  Qxe8 {[%clk 0:00:05]} 31. Bxe8 {[%clk 0:01:10]}  Kxe8 {[%clk 0:00:06]} 32. Rxe6+ {[%clk 0:01:09]}  Kd7 {[%clk 0:00:06]} 33. Rxb6 {[%clk 0:01:08]}  Nxb6 {[%clk 0:00:07]} 34. b3 {[%clk 0:01:07]}  Kd6 {[%clk 0:00:05]} 35. h4 {[%clk 0:01:07]}  Nd7 {[%clk 0:00:05]} 36. g4 {[%clk 0:01:06]}  Nf6 {[%clk 0:00:05]} 37. h5 {[%clk 0:01:06]}  Kd7 {[%clk 0:00:04]} 38. Kg2 {[%clk 0:01:05]}  Kd6 {[%clk 0:00:05]} 39. Kg3 {[%clk 0:01:05]}  Kd7 {[%clk 0:00:05]} 40. Kf4 {[%clk 0:01:06]}  Kd6 {[%clk 0:00:05]} 41. Kg5 {[%clk 0:01:06]} 1-0


[Site "https://www.chess.com"]

[Event "Titled Tuesday Blitz May 25 2021"]
[White "Stoleriu, George"]
[Black "Grochal, Joey"]
[WhiteFideId "1227505"]
[BlackFideId "1019945"]
[WhiteElo "2227"]
[BlackElo "2265"]
[Result "1-0"]
[Round "09"]
[TimeControl "180+1"]
[Date "2021.05.25"]
[WhiteClock "0:00:06"]
[BlackClock "0:00:04"]

1. e4 {[%clk 0:03:00]}  c5 {[%clk 0:03:00]} 2. Nf3 {[%clk 0:03:00]}  e6 {[%clk 0:02:58]} 3. b3 {[%clk 0:03:00]}  Nc6 {[%clk 0:02:55]} 4. Bb2 {[%clk 0:03:00]}  d6 {[%clk 0:02:56]} 5. Bb5 {[%clk 0:02:55]}  Bd7 {[%clk 0:02:56]} 6. O-O {[%clk 0:02:55]}  Nf6 {[%clk 0:02:55]} 7. Re1 {[%clk 0:02:50]}  Be7 {[%clk 0:02:54]} 8. d4 {[%clk 0:02:49]}  Nxd4 {[%clk 0:02:51]} 9. Nxd4 {[%clk 0:02:50]}  cxd4 {[%clk 0:02:48]} 10. Bxd7+ {[%clk 0:02:48]}  Qxd7 {[%clk 0:02:47]} 11. Qxd4 {[%clk 0:02:48]}  O-O {[%clk 0:02:43]} 12. c4 {[%clk 0:02:48]}  Ne8 {[%clk 0:02:42]} 13. Nc3 {[%clk 0:02:47]}  Qc6 {[%clk 0:02:36]} 14. Rad1 {[%clk 0:02:41]}  Bf6 {[%clk 0:02:31]} 15. Qd2 {[%clk 0:02:40]}  a6 {[%clk 0:02:30]} 16. a4 {[%clk 0:02:15]}  Rd8 {[%clk 0:02:01]} 17. a5 {[%clk 0:02:09]}  b5 {[%clk 0:01:45]} 18. cxb5 {[%clk 0:01:57]}  axb5 {[%clk 0:01:45]} 19. Rc1 {[%clk 0:01:57]}  Qb7 {[%clk 0:01:45]} 20. b4 {[%clk 0:01:52]}  Nc7 {[%clk 0:01:43]} 21. Ne2 {[%clk 0:00:44]}  Bxb2 {[%clk 0:01:36]} 22. Qxb2 {[%clk 0:00:45]}  d5 {[%clk 0:01:35]} 23. Nd4 {[%clk 0:00:16]}  dxe4 {[%clk 0:01:33]} 24. Nc6 {[%clk 0:00:17]}  Rd6 {[%clk 0:01:27]} 25. Ne7+ {[%clk 0:00:15]}  Kh8 {[%clk 0:01:27]} 26. Qe5 {[%clk 0:00:16]}  Rd7 {[%clk 0:01:15]} 27. Nc6 {[%clk 0:00:15]}  f5 {[%clk 0:00:59]} 28. Qb2 {[%clk 0:00:04]}  Rd6 {[%clk 0:00:41]} 29. Ne5 {[%clk 0:00:04]}  Nd5 {[%clk 0:00:37]} 30. Red1 {[%clk 0:00:03]}  Kg8 {[%clk 0:00:26]} 31. h3 {[%clk 0:00:03]}  Rc8 {[%clk 0:00:23]} 32. Rxc8+ {[%clk 0:00:03]}  Qxc8 {[%clk 0:00:23]} 33. Rc1 {[%clk 0:00:03]}  Qb7 {[%clk 0:00:20]} 34. Rc5 {[%clk 0:00:03]}  Nf4 {[%clk 0:00:14]} 35. Kh2 {[%clk 0:00:02]}  e3 {[%clk 0:00:14]} 36. f3 {[%clk 0:00:02]}  e2 {[%clk 0:00:13]} 37. Rc1 {[%clk 0:00:02]}  Qb8 {[%clk 0:00:09]} 38. Qc3 {[%clk 0:00:02]}  Nd3 {[%clk 0:00:07]} 39. Qc8+ {[%clk 0:00:02]}  Rd8 {[%clk 0:00:06]} 40. Qxb8 {[%clk 0:00:02]}  Rxb8 {[%clk 0:00:06]} 41. Nxd3 {[%clk 0:00:02]}  Rd8 {[%clk 0:00:07]} 42. Nf2 {[%clk 0:00:01]}  Kf7 {[%clk 0:00:03]} 43. Re1 {[%clk 0:00:02]}  Rd2 {[%clk 0:00:03]} 44. Kg3 {[%clk 0:00:02]}  Rb2 {[%clk 0:00:04]} 45. f4 {[%clk 0:00:02]}  Rb3+ {[%clk 0:00:03]} 46. Kh2 {[%clk 0:00:02]}  Rb2 {[%clk 0:00:04]} 47. Nd3 {[%clk 0:00:02]}  Rd2 {[%clk 0:00:04]} 48. Ne5+ {[%clk 0:00:03]}  Kf6 {[%clk 0:00:04]} 49. a6 {[%clk 0:00:04]}  Ra2 {[%clk 0:00:03]} 50. a7 {[%clk 0:00:04]}  Rxa7 {[%clk 0:00:04]} 51. Rxe2 {[%clk 0:00:05]}  Ra1 {[%clk 0:00:04]} 52. Rd2 {[%clk 0:00:05]}  Rb1 {[%clk 0:00:04]} 53. Rd7 {[%clk 0:00:06]} 1-0


[Site "https://www.chess.com"]

[Event "Titled Tuesday Blitz May 25 2021"]
[White "Urazayev, Arystanbek"]
[Black "Zhigalko, Sergei"]
[WhiteFideId "13709810"]
[BlackFideId "13502956"]
[WhiteElo "2321"]
[BlackElo "2662"]
[Result "1/2-1/2"]
[Round "09"]
[TimeControl "180+1"]
[Date "2021.05.25"]
[WhiteClock "0:00:33"]
[BlackClock "0:00:04"]

1. d4 {[%clk 0:03:00]}  Nf6 {[%clk 0:03:00]} 2. Nf3 {[%clk 0:03:01]}  e6 {[%clk 0:02:57]} 3. Bf4 {[%clk 0:03:01]}  d5 {[%clk 0:02:56]} 4. Nbd2 {[%clk 0:03:02]}  Bd6 {[%clk 0:02:56]} 5. e3 {[%clk 0:03:02]}  O-O {[%clk 0:02:57]} 6. Bd3 {[%clk 0:03:03]}  b6 {[%clk 0:02:57]} 7. O-O {[%clk 0:03:02]}  Bb7 {[%clk 0:02:50]} 8. c3 {[%clk 0:03:02]}  c5 {[%clk 0:02:50]} 9. Re1 {[%clk 0:02:51]}  Nc6 {[%clk 0:02:49]} 10. Bxd6 {[%clk 0:02:45]}  Qxd6 {[%clk 0:02:49]} 11. Qc2 {[%clk 0:02:46]}  e5 {[%clk 0:02:35]} 12. dxe5 {[%clk 0:02:45]}  Nxe5 {[%clk 0:02:36]} 13. Nxe5 {[%clk 0:02:46]}  Qxe5 {[%clk 0:02:37]} 14. Nf3 {[%clk 0:02:46]}  Qe7 {[%clk 0:02:36]} 15. Rad1 {[%clk 0:02:47]}  Rad8 {[%clk 0:02:36]} 16. Qa4 {[%clk 0:02:47]}  Rd6 {[%clk 0:02:30]} 17. h3 {[%clk 0:02:40]}  Rfd8 {[%clk 0:02:29]} 18. Qf4 {[%clk 0:02:33]}  g6 {[%clk 0:02:19]} 19. Qh6 {[%clk 0:02:28]}  Qf8 {[%clk 0:02:09]} 20. Qxf8+ {[%clk 0:02:27]}  Kxf8 {[%clk 0:02:10]} 21. Be2 {[%clk 0:02:09]}  h5 {[%clk 0:02:07]} 22. h4 {[%clk 0:02:06]}  Ne4 {[%clk 0:01:58]} 23. Nd2 {[%clk 0:02:03]}  d4 {[%clk 0:01:45]} 24. Nxe4 {[%clk 0:02:00]}  Bxe4 {[%clk 0:01:45]} 25. exd4 {[%clk 0:02:00]}  cxd4 {[%clk 0:01:45]} 26. Bxh5 {[%clk 0:01:46]}  dxc3 {[%clk 0:00:56]} 27. Rxd6 {[%clk 0:01:39]}  Rxd6 {[%clk 0:00:55]} 28. bxc3 {[%clk 0:01:39]}  Bxg2 {[%clk 0:00:27]} 29. Kxg2 {[%clk 0:01:40]}  gxh5 {[%clk 0:00:28]} 30. Re5 {[%clk 0:01:40]}  Rc6 {[%clk 0:00:22]} 31. Rxh5 {[%clk 0:01:19]}  Rxc3 {[%clk 0:00:21]} 32. Re5 {[%clk 0:01:20]}  Ra3 {[%clk 0:00:20]} 33. Re2 {[%clk 0:01:20]}  Kg7 {[%clk 0:00:20]} 34. f3 {[%clk 0:01:20]}  Kg6 {[%clk 0:00:19]} 35. Kg3 {[%clk 0:01:21]}  b5 {[%clk 0:00:12]} 36. Rc2 {[%clk 0:01:15]}  f6 {[%clk 0:00:11]} 37. Rd2 {[%clk 0:00:51]}  a6 {[%clk 0:00:11]} 38. Rc2 {[%clk 0:00:51]}  Ra4 {[%clk 0:00:12]} 39. Rd2 {[%clk 0:00:50]}  Kh5 {[%clk 0:00:12]} 40. Rd5+ {[%clk 0:00:49]}  Kg6 {[%clk 0:00:12]} 41. Rd2 {[%clk 0:00:46]}  Rc4 {[%clk 0:00:08]} 42. Rd6 {[%clk 0:00:46]}  a5 {[%clk 0:00:08]} 43. Rb6 {[%clk 0:00:45]}  Rc5 {[%clk 0:00:06]} 44. Kg4 {[%clk 0:00:42]}  b4 {[%clk 0:00:05]} 45. Ra6 {[%clk 0:00:39]}  Rb5 {[%clk 0:00:03]} 46. Ra8 {[%clk 0:00:32]}  Rc5 {[%clk 0:00:03]} 47. Rg8+ {[%clk 0:00:32]}  Kf7 {[%clk 0:00:03]} 48. Ra8 {[%clk 0:00:33]}  Kg6 {[%clk 0:00:03]} 49. Rg8+ {[%clk 0:00:32]}  Kf7 {[%clk 0:00:03]} 50. Ra8 {[%clk 0:00:33]}  Kg6 {[%clk 0:00:04]} 1/2-1/2


[Site "https://www.chess.com"]

[Event "Titled Tuesday Blitz May 25 2021"]
[White "Vakhlamov, Igor L."]
[Black "Hamley, Ryan"]
[WhiteFideId "24126748"]
[BlackFideId "30959497"]
[WhiteElo "2405"]
[BlackElo "2418"]
[Result "1-0"]
[Round "09"]
[TimeControl "180+1"]
[Date "2021.05.25"]
[WhiteClock "0:00:17"]
[BlackClock "0:00:04"]

1. e4 {[%clk 0:02:29]}  c6 {[%clk 0:02:51]} 2. Nc3 {[%clk 0:02:30]}  d5 {[%clk 0:02:50]} 3. Nf3 {[%clk 0:02:30]}  g6 {[%clk 0:02:50]} 4. d4 {[%clk 0:02:28]}  Bg7 {[%clk 0:02:50]} 5. h3 {[%clk 0:02:24]}  dxe4 {[%clk 0:02:50]} 6. Nxe4 {[%clk 0:02:25]}  Nf6 {[%clk 0:02:50]} 7. Bd3 {[%clk 0:02:21]}  O-O {[%clk 0:02:50]} 8. O-O {[%clk 0:02:21]}  Nbd7 {[%clk 0:02:50]} 9. Re1 {[%clk 0:02:21]}  Re8 {[%clk 0:02:49]} 10. c3 {[%clk 0:02:21]}  Qc7 {[%clk 0:02:45]} 11. Bg5 {[%clk 0:02:19]}  b6 {[%clk 0:02:38]} 12. Qb3 {[%clk 0:01:58]}  Bb7 {[%clk 0:02:25]} 13. Rad1 {[%clk 0:01:53]}  e6 {[%clk 0:02:22]} 14. Ne5 {[%clk 0:01:43]}  Nxe4 {[%clk 0:02:11]} 15. Bxe4 {[%clk 0:01:24]}  Nxe5 {[%clk 0:02:10]} 16. dxe5 {[%clk 0:01:25]}  Bxe5 {[%clk 0:02:10]} 17. h4 {[%clk 0:01:20]}  Bg7 {[%clk 0:01:41]} 18. h5 {[%clk 0:01:15]}  c5 {[%clk 0:01:35]} 19. h6 {[%clk 0:01:11]}  Bf8 {[%clk 0:01:31]} 20. Qa4 {[%clk 0:01:05]}  Bxe4 {[%clk 0:01:03]} 21. Rxe4 {[%clk 0:01:02]}  Bd6 {[%clk 0:00:43]} 22. Re2 {[%clk 0:00:49]}  a6 {[%clk 0:00:34]} 23. Red2 {[%clk 0:00:47]}  b5 {[%clk 0:00:29]} 24. Qe4 {[%clk 0:00:46]}  Bf8 {[%clk 0:00:08]} 25. Rd7 {[%clk 0:00:45]}  Qb6 {[%clk 0:00:08]} 26. Rb7 {[%clk 0:00:39]}  Qa5 {[%clk 0:00:06]} 27. Rdd7 {[%clk 0:00:24]}  f6 {[%clk 0:00:04]} 28. Qf4 {[%clk 0:00:17]} 1-0


[Site "https://www.chess.com"]